[Event "Titled Tuesday Blitz June 28 Early 2022"]
[White "Shtyka, Sergey"]
[Black "Libiszewski, Fabien"]
[WhiteFideId "4138465"]
[BlackFideId "616834"]
[WhiteElo "2014"]
[BlackElo "2440"]
[Result "0-1"]
[Round "01"]
[TimeControl "180+1"]
[Date "2022.06.28"]
[WhiteClock "0:00:01"]
[BlackClock "0:00:03"]

1. e4 {[%clk 0:02:47]}  g6 {[%clk 0:02:55]} 2. d4 {[%clk 0:02:46]}  d6 {[%clk 0:02:55]} 3. Nc3 {[%clk 0:02:46]}  Bg7 {[%clk 0:02:54]} 4. g3 {[%clk 0:02:45]}  Nf6 {[%clk 0:02:53]} 5. Bg2 {[%clk 0:02:45]}  O-O {[%clk 0:02:54]} 6. Nge2 {[%clk 0:02:43]}  Nc6 {[%clk 0:02:53]} 7. h3 {[%clk 0:02:43]}  e5 {[%clk 0:02:52]} 8. Be3 {[%clk 0:02:43]}  a6 {[%clk 0:02:51]} 9. O-O {[%clk 0:02:41]}  exd4 {[%clk 0:02:44]} 10. Nxd4 {[%clk 0:02:40]}  Re8 {[%clk 0:02:45]} 11. Nxc6 {[%clk 0:02:36]}  bxc6 {[%clk 0:02:45]} 12. Kh2 {[%clk 0:02:27]}  Rb8 {[%clk 0:02:44]} 13. Rb1 {[%clk 0:02:25]}  a5 {[%clk 0:02:37]} 14. f4 {[%clk 0:02:23]}  Rb4 {[%clk 0:02:12]} 15. e5 {[%clk 0:02:16]}  dxe5 {[%clk 0:02:08]} 16. Bxc6 {[%clk 0:02:15]}  Bd7 {[%clk 0:02:03]} 17. fxe5 {[%clk 0:02:03]}  Ng4+ {[%clk 0:01:40]} 18. hxg4 {[%clk 0:02:02]}  Bxc6 {[%clk 0:01:40]} 19. Qxd8 {[%clk 0:02:01]}  Rxd8 {[%clk 0:01:41]} 20. Bg5 {[%clk 0:01:51]}  Rd7 {[%clk 0:01:27]} 21. Rbd1 {[%clk 0:01:02]}  Rxb2 {[%clk 0:00:59]} 22. Rxd7 {[%clk 0:00:59]}  Bxd7 {[%clk 0:01:00]} 23. Rf2 {[%clk 0:00:48]}  Bxe5 {[%clk 0:00:55]} 24. Nd5 {[%clk 0:00:46]}  Ba4 {[%clk 0:00:25]} 25. Ne3 {[%clk 0:00:20]}  Bd4 {[%clk 0:00:22]} 26. Re2 {[%clk 0:00:18]}  Kg7 {[%clk 0:00:19]} 27. Bf4 {[%clk 0:00:16]}  c5 {[%clk 0:00:16]} 28. g5 {[%clk 0:00:16]}  f6 {[%clk 0:00:12]} 29. Kh3 {[%clk 0:00:15]}  Bd7+ {[%clk 0:00:11]} 30. g4 {[%clk 0:00:14]}  fxg5 {[%clk 0:00:10]} 31. Bxg5 {[%clk 0:00:15]}  h5 {[%clk 0:00:11]} 32. Kg3 {[%clk 0:00:13]}  Rxa2 {[%clk 0:00:06]} 33. gxh5 {[%clk 0:00:13]}  gxh5 {[%clk 0:00:06]} 34. Bf4 {[%clk 0:00:13]}  a4 {[%clk 0:00:05]} 35. Nc4 {[%clk 0:00:11]}  Kf6 {[%clk 0:00:04]} 36. Kh4 {[%clk 0:00:10]}  Bf5 {[%clk 0:00:04]} 37. Bg5+ {[%clk 0:00:09]}  Kg6 {[%clk 0:00:03]} 38. Re7 {[%clk 0:00:01]}  Rxc2 {[%clk 0:00:03]} 0-1


[Site "https://www.chess.com"]

[Event "Titled Tuesday Blitz June 28 Early 2022"]
[White "Skatchkov, Valery"]
[Black "Steinberg, Nitzan"]
[WhiteFideId "24195812"]
[BlackFideId "2801795"]
[WhiteElo "2211"]
[BlackElo "2471"]
[Result "0-1"]
[Round "01"]
[TimeControl "180+1"]
[Date "2022.06.28"]
[WhiteClock "0:00:06"]
[BlackClock "0:00:09"]

1. d4 {[%clk 0:03:00]}  g6 {[%clk 0:02:59]} 2. c4 {[%clk 0:03:01]}  Bg7 {[%clk 0:02:59]} 3. Nc3 {[%clk 0:03:01]}  d6 {[%clk 0:02:59]} 4. e4 {[%clk 0:03:02]}  Nf6 {[%clk 0:02:59]} 5. h3 {[%clk 0:03:03]}  c5 {[%clk 0:02:57]} 6. d5 {[%clk 0:03:03]}  a6 {[%clk 0:02:57]} 7. Nf3 {[%clk 0:02:59]}  O-O {[%clk 0:02:56]} 8. Bd3 {[%clk 0:03:00]}  b5 {[%clk 0:02:57]} 9. cxb5 {[%clk 0:03:00]}  axb5 {[%clk 0:02:58]} 10. O-O {[%clk 0:02:55]}  c4 {[%clk 0:02:53]} 11. Bc2 {[%clk 0:02:55]}  b4 {[%clk 0:02:53]} 12. Na4 {[%clk 0:02:51]}  Ba6 {[%clk 0:02:50]} 13. Re1 {[%clk 0:02:50]}  Nfd7 {[%clk 0:02:44]} 14. Be3 {[%clk 0:02:47]}  Qa5 {[%clk 0:02:22]} 15. Rb1 {[%clk 0:02:43]}  Rc8 {[%clk 0:02:21]} 16. b3 {[%clk 0:02:35]}  c3 {[%clk 0:02:05]} 17. Nd4 {[%clk 0:02:32]}  Nc5 {[%clk 0:02:01]} 18. Nxc5 {[%clk 0:02:27]}  dxc5 {[%clk 0:02:01]} 19. Nf3 {[%clk 0:02:21]}  Nd7 {[%clk 0:02:00]} 20. Bf4 {[%clk 0:02:17]}  c4 {[%clk 0:01:52]} 21. Nd4 {[%clk 0:02:12]}  Bb7 {[%clk 0:01:40]} 22. bxc4 {[%clk 0:01:42]}  Rxc4 {[%clk 0:01:39]} 23. Nc6 {[%clk 0:01:42]}  Bxc6 {[%clk 0:01:21]} 24. dxc6 {[%clk 0:01:42]}  Rd4 {[%clk 0:01:21]} 25. Qe2 {[%clk 0:01:30]}  Ne5 {[%clk 0:01:21]} 26. Bxe5 {[%clk 0:01:14]}  Bxe5 {[%clk 0:01:20]} 27. Bb3 {[%clk 0:01:14]}  Qc5 {[%clk 0:01:11]} 28. Rbd1 {[%clk 0:01:03]}  Rad8 {[%clk 0:01:10]} 29. Rxd4 {[%clk 0:01:03]}  Rxd4 {[%clk 0:01:10]} 30. Qe3 {[%clk 0:00:51]}  Qxc6 {[%clk 0:01:00]} 31. f4 {[%clk 0:00:51]}  Bd6 {[%clk 0:00:59]} 32. Kh1 {[%clk 0:00:44]}  Bc5 {[%clk 0:00:59]} 33. Qe2 {[%clk 0:00:36]}  Rd2 {[%clk 0:00:45]} 34. Qc4 {[%clk 0:00:36]}  e6 {[%clk 0:00:45]} 35. a3 {[%clk 0:00:25]}  Qd6 {[%clk 0:00:20]} 36. axb4 {[%clk 0:00:17]}  Bxb4 {[%clk 0:00:20]} 37. f5 {[%clk 0:00:18]}  Qg3 {[%clk 0:00:12]} 38. Rg1 {[%clk 0:00:15]}  Bd6 {[%clk 0:00:11]} 39. Qc8+ {[%clk 0:00:06]}  Kg7 {[%clk 0:00:12]} 40. f6+ {[%clk 0:00:07]}  Kh6 {[%clk 0:00:12]} 41. e5 {[%clk 0:00:06]}  Bxe5 {[%clk 0:00:09]} 42. Qf8+ {[%clk 0:00:06]}  Kg5 {[%clk 0:00:09]} 0-1


[Site "https://www.chess.com"]

[Event "Titled Tuesday Blitz June 28 Early 2022"]
[White "Snehal, Bhosale"]
[Black "Seo, Jung Min"]
[WhiteFideId "5021995"]
[BlackFideId "1734687"]
[WhiteElo "2103"]
[BlackElo "2414"]
[Result "0-1"]
[Round "01"]
[TimeControl "180+1"]
[Date "2022.06.28"]
[WhiteClock "0:00:39"]
[BlackClock "0:01:33"]

1. d4 {[%clk 0:02:46]}  d5 {[%clk 0:02:57]} 2. c4 {[%clk 0:02:46]}  e6 {[%clk 0:02:57]} 3. Nc3 {[%clk 0:02:46]}  Nf6 {[%clk 0:02:57]} 4. Nf3 {[%clk 0:02:47]}  Bb4 {[%clk 0:02:57]} 5. e3 {[%clk 0:02:33]}  O-O {[%clk 0:02:56]} 6. Bd2 {[%clk 0:02:32]}  b6 {[%clk 0:02:55]} 7. Rc1 {[%clk 0:02:28]}  Bb7 {[%clk 0:02:54]} 8. cxd5 {[%clk 0:02:26]}  exd5 {[%clk 0:02:54]} 9. Bd3 {[%clk 0:02:25]}  a6 {[%clk 0:02:49]} 10. O-O {[%clk 0:02:18]}  Nbd7 {[%clk 0:02:48]} 11. Ne5 {[%clk 0:02:06]}  Nxe5 {[%clk 0:02:47]} 12. dxe5 {[%clk 0:02:07]}  Nd7 {[%clk 0:02:48]} 13. f4 {[%clk 0:01:57]}  Nc5 {[%clk 0:02:47]} 14. Bb1 {[%clk 0:01:51]}  d4 {[%clk 0:02:47]} 15. Ne2 {[%clk 0:01:30]}  Qd5 {[%clk 0:02:30]} 16. e4 {[%clk 0:01:26]}  Nxe4 {[%clk 0:02:27]} 17. Bxb4 {[%clk 0:01:23]}  Nc3 {[%clk 0:02:27]} 18. Bxh7+ {[%clk 0:01:22]}  Kh8 {[%clk 0:02:21]} 19. Rf3 {[%clk 0:01:15]}  Nxd1 {[%clk 0:02:16]} 20. Bxf8 {[%clk 0:01:13]}  Rxf8 {[%clk 0:02:13]} 21. Bd3 {[%clk 0:01:12]}  g6 {[%clk 0:01:44]} 22. Rxd1 {[%clk 0:01:11]}  c5 {[%clk 0:01:44]} 23. Ng3 {[%clk 0:01:07]}  Qxa2 {[%clk 0:01:44]} 24. Ne4 {[%clk 0:00:59]}  c4 {[%clk 0:01:38]} 25. Rh3+ {[%clk 0:00:57]}  Kg7 {[%clk 0:01:38]} 26. Nf6 {[%clk 0:00:56]}  Rh8 {[%clk 0:01:38]} 27. Rxh8 {[%clk 0:00:43]}  Kxh8 {[%clk 0:01:37]} 28. Bf1 {[%clk 0:00:41]}  Qxb2 {[%clk 0:01:34]} 29. Bxc4 {[%clk 0:00:39]}  Qxg2# {[%clk 0:01:33]} 0-1


[Site "https://www.chess.com"]

[Event "Titled Tuesday Blitz June 28 Early 2022"]
[White "Starozhilov, Leonid"]
[Black "Caetano, Ryan Wesley Da Costa"]
[WhiteFideId "14106752"]
[BlackFideId "2188554"]
[WhiteElo "2414"]
[BlackElo "2030"]
[Result "1-0"]
[Round "01"]
[TimeControl "180+1"]
[Date "2022.06.28"]
[WhiteClock "0:01:42"]
[BlackClock "0:00:49"]

1. e4 {[%clk 0:02:57]}  c5 {[%clk 0:02:59]} 2. Nf3 {[%clk 0:02:57]}  d6 {[%clk 0:03:00]} 3. Bb5+ {[%clk 0:02:57]}  Bd7 {[%clk 0:02:58]} 4. a4 {[%clk 0:02:57]}  Nc6 {[%clk 0:02:57]} 5. O-O {[%clk 0:02:57]}  g6 {[%clk 0:02:58]} 6. c3 {[%clk 0:02:56]}  Bg7 {[%clk 0:02:58]} 7. d4 {[%clk 0:02:57]}  cxd4 {[%clk 0:02:59]} 8. cxd4 {[%clk 0:02:57]}  Nf6 {[%clk 0:02:57]} 9. Nc3 {[%clk 0:02:57]}  O-O {[%clk 0:02:56]} 10. h3 {[%clk 0:02:57]}  a6 {[%clk 0:02:56]} 11. Bc4 {[%clk 0:02:55]}  Rc8 {[%clk 0:02:51]} 12. Bg5 {[%clk 0:02:55]}  Na5 {[%clk 0:02:28]} 13. Bd3 {[%clk 0:02:55]}  h6 {[%clk 0:02:19]} 14. Bh4 {[%clk 0:02:54]}  g5 {[%clk 0:02:14]} 15. Bg3 {[%clk 0:02:54]}  Nc4 {[%clk 0:02:10]} 16. Qe2 {[%clk 0:02:53]}  b5 {[%clk 0:02:08]} 17. axb5 {[%clk 0:02:53]}  axb5 {[%clk 0:02:08]} 18. e5 {[%clk 0:02:54]}  Nh5 {[%clk 0:02:05]} 19. Bh2 {[%clk 0:02:44]}  dxe5 {[%clk 0:01:53]} 20. dxe5 {[%clk 0:02:42]}  Bc6 {[%clk 0:01:37]} 21. Rad1 {[%clk 0:02:36]}  Qb6 {[%clk 0:01:12]} 22. Nxg5 {[%clk 0:02:34]}  hxg5 {[%clk 0:01:06]} 23. Qxh5 {[%clk 0:02:32]}  Rfd8 {[%clk 0:01:03]} 24. e6 {[%clk 0:02:13]}  fxe6 {[%clk 0:00:57]} 25. Bh7+ {[%clk 0:02:10]}  Kf8 {[%clk 0:00:58]} 26. Qxg5 {[%clk 0:01:43]}  Nxb2 {[%clk 0:00:52]} 27. Rxd8+ {[%clk 0:01:42]}  Rxd8 {[%clk 0:00:52]} 28. Be5 {[%clk 0:01:43]}  Bxe5 {[%clk 0:00:49]} 29. Qg8# {[%clk 0:01:42]} 1-0


[Site "https://www.chess.com"]

[Event "Titled Tuesday Blitz June 28 Early 2022"]
[White "Suleymanli, Suleyman"]
[Black "Winkels, Marcel"]
[WhiteFideId "13416375"]
[BlackFideId "1003887"]
[WhiteElo "1598"]
[BlackElo "1900"]
[Result "1-0"]
[Round "01"]
[TimeControl "180+1"]
[Date "2022.06.28"]
[WhiteClock "0:02:08"]
[BlackClock "0:01:47"]

1. Nf3 {[%clk 0:03:00]}  f5 {[%clk 0:02:57]} 2. d4 {[%clk 0:03:01]}  Nf6 {[%clk 0:02:56]} 3. g3 {[%clk 0:03:01]}  g6 {[%clk 0:02:56]} 4. Bg2 {[%clk 0:03:02]}  Bg7 {[%clk 0:02:56]} 5. c4 {[%clk 0:03:03]}  d6 {[%clk 0:02:56]} 6. O-O {[%clk 0:03:04]}  O-O {[%clk 0:02:56]} 7. Nc3 {[%clk 0:03:05]}  Qe8 {[%clk 0:02:54]} 8. b3 {[%clk 0:03:04]}  e5 {[%clk 0:02:52]} 9. dxe5 {[%clk 0:03:05]}  dxe5 {[%clk 0:02:52]} 10. Ba3 {[%clk 0:02:41]}  Rf7 {[%clk 0:02:51]} 11. Qc1 {[%clk 0:02:17]}  c6 {[%clk 0:02:27]} 12. Rd1 {[%clk 0:02:13]}  e4 {[%clk 0:02:25]} 13. Nd4 {[%clk 0:02:13]}  Be6 {[%clk 0:02:00]} 14. Nxe6 {[%clk 0:02:09]}  Qxe6 {[%clk 0:01:59]} 15. Rd8+ {[%clk 0:02:10]}  Rf8 {[%clk 0:01:58]} 16. Bxf8 {[%clk 0:02:09]}  Bxf8 {[%clk 0:01:57]} 17. Qa3 {[%clk 0:02:09]}  Nbd7 {[%clk 0:01:47]} 18. Rxa8 {[%clk 0:02:08]} 1-0


[Site "https://www.chess.com"]

[Event "Titled Tuesday Blitz June 28 Early 2022"]
[White "Thiel, Thomas"]
[Black "Arias, Juan Cruz"]
[WhiteFideId "4615964"]
[BlackFideId "118540"]
[WhiteElo "2247"]
[BlackElo "2091"]
[Result "0-1"]
[Round "01"]
[TimeControl "180+1"]
[Date "2022.06.28"]
[WhiteClock "0:00:01"]
[BlackClock "0:01:08"]

1. e4 {[%clk 0:03:00]}  e6 {[%clk 0:02:58]} 2. d4 {[%clk 0:02:58]}  d5 {[%clk 0:02:58]} 3. Nc3 {[%clk 0:02:57]}  Nf6 {[%clk 0:02:58]} 4. Bg5 {[%clk 0:02:54]}  Be7 {[%clk 0:02:58]} 5. e5 {[%clk 0:02:54]}  Nfd7 {[%clk 0:02:58]} 6. h4 {[%clk 0:02:54]}  h6 {[%clk 0:02:58]} 7. Bxe7 {[%clk 0:02:50]}  Qxe7 {[%clk 0:02:59]} 8. f4 {[%clk 0:02:49]}  c5 {[%clk 0:02:58]} 9. Nf3 {[%clk 0:02:49]}  Nc6 {[%clk 0:02:58]} 10. Qd2 {[%clk 0:02:44]}  a6 {[%clk 0:02:58]} 11. O-O-O {[%clk 0:02:42]}  b5 {[%clk 0:02:58]} 12. dxc5 {[%clk 0:02:40]}  Nxc5 {[%clk 0:02:59]} 13. Nd4 {[%clk 0:02:38]}  Nxd4 {[%clk 0:02:49]} 14. Qxd4 {[%clk 0:02:39]}  b4 {[%clk 0:02:49]} 15. Ne2 {[%clk 0:02:27]}  a5 {[%clk 0:02:48]} 16. Qe3 {[%clk 0:02:22]}  Ba6 {[%clk 0:02:46]} 17. Nd4 {[%clk 0:02:22]}  O-O {[%clk 0:02:46]} 18. f5 {[%clk 0:02:10]}  Ne4 {[%clk 0:02:39]} 19. f6 {[%clk 0:02:02]}  gxf6 {[%clk 0:02:32]} 20. Qxh6 {[%clk 0:01:55]}  fxe5 {[%clk 0:02:31]} 21. Nf3 {[%clk 0:01:54]}  f6 {[%clk 0:02:17]} 22. Bxa6 {[%clk 0:01:43]}  Rxa6 {[%clk 0:02:16]} 23. h5 {[%clk 0:01:37]}  Nf2 {[%clk 0:02:08]} 24. Rh4 {[%clk 0:01:21]}  Qg7 {[%clk 0:02:03]} 25. Qxg7+ {[%clk 0:01:05]}  Kxg7 {[%clk 0:02:02]} 26. Rf1 {[%clk 0:01:04]}  Ne4 {[%clk 0:01:54]} 27. Rg4+ {[%clk 0:00:49]}  Kh7 {[%clk 0:01:45]} 28. Nh4 {[%clk 0:00:49]}  f5 {[%clk 0:01:42]} 29. Rg6 {[%clk 0:00:47]}  Rf6 {[%clk 0:01:41]} 30. g4 {[%clk 0:00:40]}  f4 {[%clk 0:01:34]} 31. Rxf6 {[%clk 0:00:25]}  Nxf6 {[%clk 0:01:35]} 32. Rg1 {[%clk 0:00:18]}  e4 {[%clk 0:01:35]} 33. Ng6 {[%clk 0:00:11]}  f3 {[%clk 0:01:34]} 34. Nf4 {[%clk 0:00:09]}  e5 {[%clk 0:01:32]} 35. Nh3 {[%clk 0:00:07]}  e3 {[%clk 0:01:31]} 36. Ng5+ {[%clk 0:00:06]}  Kg7 {[%clk 0:01:29]} 37. Nxf3 {[%clk 0:00:07]}  e4 {[%clk 0:01:27]} 38. Nd4 {[%clk 0:00:06]}  a4 {[%clk 0:01:09]} 39. Nf5+ {[%clk 0:00:05]}  Kh7 {[%clk 0:01:09]} 40. Nxe3 {[%clk 0:00:04]}  b3 {[%clk 0:01:10]} 41. a3 {[%clk 0:00:03]}  Rc6 {[%clk 0:01:09]} 42. c3 {[%clk 0:00:02]}  d4 {[%clk 0:01:09]} 43. Nd1 {[%clk 0:00:01]}  e3 {[%clk 0:01:08]} 0-1


[Site "https://www.chess.com"]

[Event "Titled Tuesday Blitz June 28 Early 2022"]
[White "Thorhallsson, Simon"]
[Black "Jiganchine, Roman"]
[WhiteFideId "2310090"]
[BlackFideId "2603667"]
[WhiteElo "2137"]
[BlackElo "2252"]
[Result "0-1"]
[Round "01"]
[TimeControl "180+1"]
[Date "2022.06.28"]
[WhiteClock "0:00:11"]
[BlackClock "0:00:17"]

1. e4 {[%clk 0:02:43]}  c6 {[%clk 0:02:59]} 2. d4 {[%clk 0:02:43]}  d5 {[%clk 0:02:59]} 3. e5 {[%clk 0:02:43]}  Bf5 {[%clk 0:02:59]} 4. h4 {[%clk 0:02:42]}  h5 {[%clk 0:02:57]} 5. Bg5 {[%clk 0:02:41]}  a6 {[%clk 0:02:42]} 6. Bd3 {[%clk 0:02:37]}  Bxd3 {[%clk 0:02:39]} 7. Qxd3 {[%clk 0:02:38]}  Qb6 {[%clk 0:02:38]} 8. e6 {[%clk 0:02:38]}  Nf6 {[%clk 0:02:28]} 9. exf7+ {[%clk 0:02:36]}  Kxf7 {[%clk 0:02:29]} 10. Nf3 {[%clk 0:02:37]}  Nbd7 {[%clk 0:02:28]} 11. Ne5+ {[%clk 0:02:29]}  Nxe5 {[%clk 0:02:28]} 12. dxe5 {[%clk 0:02:30]}  Ne4 {[%clk 0:02:21]} 13. Qf3+ {[%clk 0:02:17]}  Ke8 {[%clk 0:02:14]} 14. O-O {[%clk 0:01:38]}  e6 {[%clk 0:02:04]} 15. Nd2 {[%clk 0:01:27]}  Nxg5 {[%clk 0:01:57]} 16. hxg5 {[%clk 0:01:25]}  Be7 {[%clk 0:01:54]} 17. g6 {[%clk 0:01:23]}  Kd7 {[%clk 0:01:45]} 18. Nb3 {[%clk 0:01:17]}  Raf8 {[%clk 0:01:44]} 19. Qg3 {[%clk 0:01:14]}  Rf5 {[%clk 0:01:40]} 20. Qe3 {[%clk 0:01:04]}  Qxe3 {[%clk 0:01:16]} 21. fxe3 {[%clk 0:01:05]}  Rg5 {[%clk 0:00:47]} 22. Rf7 {[%clk 0:00:57]}  Rxg6 {[%clk 0:00:47]} 23. Raf1 {[%clk 0:00:55]}  h4 {[%clk 0:00:46]} 24. Nc5+ {[%clk 0:00:55]}  Ke8 {[%clk 0:00:40]} 25. Nxb7 {[%clk 0:00:54]}  h3 {[%clk 0:00:38]} 26. Nd6+ {[%clk 0:00:52]}  Bxd6 {[%clk 0:00:34]} 27. exd6 {[%clk 0:00:53]}  hxg2 {[%clk 0:00:33]} 28. d7+ {[%clk 0:00:47]}  Kd8 {[%clk 0:00:33]} 29. Rf8+ {[%clk 0:00:47]}  Rxf8 {[%clk 0:00:33]} 30. Rxf8+ {[%clk 0:00:48]}  Kxd7 {[%clk 0:00:33]} 31. Ra8 {[%clk 0:00:49]}  Rg3 {[%clk 0:00:24]} 32. Rxa6 {[%clk 0:00:42]}  Rxe3 {[%clk 0:00:23]} 33. c3 {[%clk 0:00:23]}  Re1+ {[%clk 0:00:20]} 34. Kxg2 {[%clk 0:00:21]}  Re2+ {[%clk 0:00:20]} 35. Kf3 {[%clk 0:00:21]}  Rxb2 {[%clk 0:00:20]} 36. Ke3 {[%clk 0:00:14]}  Kd6 {[%clk 0:00:20]} 37. a4 {[%clk 0:00:13]}  g5 {[%clk 0:00:20]} 38. Ra8 {[%clk 0:00:11]}  g4 {[%clk 0:00:20]} 39. Rg8 {[%clk 0:00:09]}  Ra2 {[%clk 0:00:19]} 40. Rxg4 {[%clk 0:00:09]}  c5 {[%clk 0:00:19]} 41. Kd3 {[%clk 0:00:09]}  c4+ {[%clk 0:00:19]} 42. Kd4 {[%clk 0:00:08]}  Rxa4 {[%clk 0:00:19]} 43. Rg2 {[%clk 0:00:07]}  Ra1 {[%clk 0:00:19]} 44. Rd2 {[%clk 0:00:06]}  Re1 {[%clk 0:00:18]} 45. Re2 {[%clk 0:00:06]}  e5+ {[%clk 0:00:16]} 46. Ke3 {[%clk 0:00:07]}  Rxe2+ {[%clk 0:00:15]} 47. Kxe2 {[%clk 0:00:07]}  Kc5 {[%clk 0:00:16]} 48. Kd2 {[%clk 0:00:08]}  d4 {[%clk 0:00:16]} 49. Kc2 {[%clk 0:00:09]}  d3+ {[%clk 0:00:16]} 50. Kd2 {[%clk 0:00:09]}  Kb5 {[%clk 0:00:17]} 51. Ke3 {[%clk 0:00:10]}  Ka4 {[%clk 0:00:17]} 52. Kd2 {[%clk 0:00:10]}  Kb3 {[%clk 0:00:17]} 53. Ke3 {[%clk 0:00:10]}  Kxc3 {[%clk 0:00:17]} 54. Kf2 {[%clk 0:00:11]}  Kc2 {[%clk 0:00:17]} 0-1


[Site "https://www.chess.com"]

[Event "Titled Tuesday Blitz June 28 Early 2022"]
[White "Vidonyak, Roman"]
[Black "Pinheiro, Iung Alicio de O."]
[WhiteFideId "14100622"]
[BlackFideId "2104350"]
[WhiteElo "2327"]
[BlackElo "2283"]
[Result "0-1"]
[Round "01"]
[TimeControl "180+1"]
[Date "2022.06.28"]
[WhiteClock "0:00:01"]
[BlackClock "0:00:06"]

1. d4 {[%clk 0:02:59]}  d5 {[%clk 0:02:58]} 2. c4 {[%clk 0:02:59]}  c6 {[%clk 0:02:57]} 3. Nf3 {[%clk 0:02:58]}  Nf6 {[%clk 0:02:56]} 4. Nc3 {[%clk 0:02:58]}  g6 {[%clk 0:02:55]} 5. e3 {[%clk 0:02:54]}  Bg7 {[%clk 0:02:54]} 6. Bd3 {[%clk 0:02:53]}  O-O {[%clk 0:02:54]} 7. O-O {[%clk 0:02:52]}  Bg4 {[%clk 0:02:54]} 8. h3 {[%clk 0:02:51]}  Bxf3 {[%clk 0:02:54]} 9. Qxf3 {[%clk 0:02:52]}  e6 {[%clk 0:02:55]} 10. b3 {[%clk 0:02:47]}  Re8 {[%clk 0:02:48]} 11. Bb2 {[%clk 0:02:46]}  Nbd7 {[%clk 0:02:47]} 12. Rac1 {[%clk 0:02:42]}  a5 {[%clk 0:02:45]} 13. a3 {[%clk 0:02:27]}  Qb6 {[%clk 0:02:42]} 14. Qd1 {[%clk 0:02:19]}  dxc4 {[%clk 0:02:21]} 15. Bxc4 {[%clk 0:02:20]}  Rad8 {[%clk 0:02:20]} 16. Na4 {[%clk 0:02:16]}  Qa7 {[%clk 0:02:18]} 17. Bd3 {[%clk 0:02:09]}  e5 {[%clk 0:02:16]} 18. Qc2 {[%clk 0:01:59]}  Nd5 {[%clk 0:02:07]} 19. Rfd1 {[%clk 0:01:49]}  exd4 {[%clk 0:02:03]} 20. exd4 {[%clk 0:01:44]}  Re7 {[%clk 0:01:47]} 21. Nc5 {[%clk 0:01:28]}  Rde8 {[%clk 0:01:26]} 22. Bc4 {[%clk 0:01:08]}  N7b6 {[%clk 0:01:11]} 23. Bf1 {[%clk 0:01:05]}  h5 {[%clk 0:01:08]} 24. Qd2 {[%clk 0:00:57]}  Nc8 {[%clk 0:00:52]} 25. b4 {[%clk 0:00:54]}  axb4 {[%clk 0:00:44]} 26. axb4 {[%clk 0:00:55]}  Qb6 {[%clk 0:00:44]} 27. Rb1 {[%clk 0:00:38]}  Nd6 {[%clk 0:00:43]} 28. Ba1 {[%clk 0:00:37]}  Nb5 {[%clk 0:00:36]} 29. Kh1 {[%clk 0:00:22]}  Kh7 {[%clk 0:00:34]} 30. Bxb5 {[%clk 0:00:15]}  Qxb5 {[%clk 0:00:32]} 31. Qd3 {[%clk 0:00:16]}  Qxd3 {[%clk 0:00:17]} 32. Nxd3 {[%clk 0:00:17]}  Re4 {[%clk 0:00:16]} 33. Nc5 {[%clk 0:00:17]}  R4e7 {[%clk 0:00:16]} 34. Nd3 {[%clk 0:00:16]}  Bh6 {[%clk 0:00:15]} 35. b5 {[%clk 0:00:15]}  Bg7 {[%clk 0:00:12]} 36. Nc5 {[%clk 0:00:14]}  cxb5 {[%clk 0:00:11]} 37. Rxb5 {[%clk 0:00:13]}  b6 {[%clk 0:00:12]} 38. Nd3 {[%clk 0:00:12]}  Rd8 {[%clk 0:00:12]} 39. Rbb1 {[%clk 0:00:12]}  Red7 {[%clk 0:00:12]} 40. Ne1 {[%clk 0:00:11]}  Nf4 {[%clk 0:00:11]} 41. Nf3 {[%clk 0:00:12]}  Ne6 {[%clk 0:00:11]} 42. d5 {[%clk 0:00:12]}  Rxd5 {[%clk 0:00:11]} 43. Rxd5 {[%clk 0:00:10]}  Rxd5 {[%clk 0:00:12]} 44. Bxg7 {[%clk 0:00:11]}  Kxg7 {[%clk 0:00:12]} 45. Rxb6 {[%clk 0:00:11]}  g5 {[%clk 0:00:12]} 46. Rb7 {[%clk 0:00:11]}  g4 {[%clk 0:00:11]} 47. hxg4 {[%clk 0:00:11]}  hxg4 {[%clk 0:00:12]} 48. Nh4 {[%clk 0:00:07]}  Rd2 {[%clk 0:00:11]} 49. Kg1 {[%clk 0:00:05]}  Kf6 {[%clk 0:00:09]} 50. f3 {[%clk 0:00:03]}  g3 {[%clk 0:00:09]} 51. Kf1 {[%clk 0:00:02]}  Rf2+ {[%clk 0:00:08]} 52. Ke1 {[%clk 0:00:02]}  Nf4 {[%clk 0:00:07]} 53. Rb6+ {[%clk 0:00:01]}  Ke7 {[%clk 0:00:06]} 54. Rb4 {[%clk 0:00:01]}  Nd3+ {[%clk 0:00:06]} 0-1


[Site "https://www.chess.com"]

[Event "Titled Tuesday Blitz June 28 Early 2022"]
[White "Volkov, Maksim"]
[Black "Shton, Roman"]
[WhiteFideId "54123070"]
[BlackFideId "14137461"]
[WhiteElo "2155"]
[BlackElo "2013"]
[Result "1/2-1/2"]
[Round "01"]
[TimeControl "180+1"]
[Date "2022.06.28"]
[WhiteClock "0:01:29"]
[BlackClock "0:01:59"]

1. d4 {[%clk 0:02:58]}  Nf6 {[%clk 0:02:58]} 2. c4 {[%clk 0:02:57]}  e6 {[%clk 0:02:58]} 3. g3 {[%clk 0:02:57]}  d5 {[%clk 0:02:58]} 4. Nf3 {[%clk 0:02:58]}  dxc4 {[%clk 0:02:57]} 5. Bg2 {[%clk 0:02:57]}  Bd7 {[%clk 0:02:57]} 6. Ne5 {[%clk 0:02:51]}  Bc6 {[%clk 0:02:58]} 7. Nxc6 {[%clk 0:02:47]}  Nxc6 {[%clk 0:02:59]} 8. Bxc6+ {[%clk 0:02:40]}  bxc6 {[%clk 0:02:58]} 9. Qa4 {[%clk 0:02:41]}  Qd5 {[%clk 0:02:58]} 10. O-O {[%clk 0:02:40]}  Rd8 {[%clk 0:02:51]} 11. Rd1 {[%clk 0:02:32]}  Qb5 {[%clk 0:02:36]} 12. Nc3 {[%clk 0:02:10]}  Qxa4 {[%clk 0:02:34]} 13. Nxa4 {[%clk 0:02:11]}  Bd6 {[%clk 0:02:33]} 14. f3 {[%clk 0:02:07]}  Nd5 {[%clk 0:02:29]} 15. a3 {[%clk 0:02:02]}  Nb6 {[%clk 0:02:28]} 16. Nc3 {[%clk 0:01:59]}  e5 {[%clk 0:02:26]} 17. Be3 {[%clk 0:01:56]}  Nd5 {[%clk 0:02:21]} 18. Bf2 {[%clk 0:01:56]}  Nxc3 {[%clk 0:02:19]} 19. bxc3 {[%clk 0:01:55]}  O-O {[%clk 0:02:18]} 20. e4 {[%clk 0:01:55]}  Rb8 {[%clk 0:02:15]} 21. Rab1 {[%clk 0:01:44]}  Rb3 {[%clk 0:02:15]} 22. Rxb3 {[%clk 0:01:36]}  cxb3 {[%clk 0:02:15]} 23. Rb1 {[%clk 0:01:36]}  Rb8 {[%clk 0:02:13]} 24. a4 {[%clk 0:01:36]}  b2 {[%clk 0:02:00]} 25. Kf1 {[%clk 0:01:29]}  Rb3 {[%clk 0:01:59]} 26. Ke2 {[%clk 0:01:29]} 1/2-1/2


[Site "https://www.chess.com"]